[Event "Irish Championship 2026"]
[Site "Talbot Hotel Stillorgan, Co.Dublin, IE"]
[Date "2026.08.01"]
[Round "1"]
[White "Jessel, Stephen"]
[Black "Landmark, Gabriel"]
[Result "1-0"]
[Board "61"]
[TimeControl "40/5400+30:1800+30"]
[WhiteFideId "628859"]
[BlackFideId "2524848"]
[WhiteElo "2364"]
[BlackElo "1999"]
[WhiteTitle "FM"]
[WhiteClock "0:00:50"]
[BlackClock "0:06:08"]
[Variant "Standard"]
[EndDate "2026.08.01"]
[EndTime "19:10:44"]

1. Nf3 {[%clk 1:30:38]}  Nf6 {[%clk 1:29:52]} 2. c4 {[%clk 1:30:52]}  e6 {[%clk 1:29:49]} 3. g3 {[%clk 1:30:57]}  Be7 {[%clk 1:29:30]}
4. Bg2 {[%clk 1:31:13]}  O-O {[%clk 1:29:36]} 5. O-O {[%clk 1:31:16]}  d5 {[%clk 1:29:28]} 6. b3 {[%clk 1:30:50]}  d4 {[%clk 1:27:39]}
7. e3 {[%clk 1:30:19]}  c5 {[%clk 1:27:13]} 8. exd4 {[%clk 1:27:59]}  cxd4 {[%clk 1:27:33]} 9. Re1 {[%clk 1:24:50]}  Nc6 {[%clk 1:25:59]}
10. d3 {[%clk 1:23:36]}  a5 {[%clk 1:22:35]} 11. Na3 {[%clk 1:16:19]}  Nd7 {[%clk 1:21:32]} 12. Nb5 {[%clk 1:10:30]}  e5 {[%clk 1:19:40]}
13. a3 {[%clk 1:05:30]}  f6 {[%clk 1:12:47]} 14. Nh4 {[%clk 0:42:45]}  Nc5 {[%clk 1:07:43]} 15. Bd5+ {[%clk 0:33:57]}  Be6 {[%clk 1:03:54]}
16. Nf5 {[%clk 0:23:06]}  Kh8 {[%clk 0:48:42]} 17. Bxe6 {[%clk 0:10:51]}  Nxe6 {[%clk 0:49:03]} 18. Rb1 {[%clk 0:06:59]}  Qd7 {[%clk 0:47:00]}
19. b4 {[%clk 0:02:49]}  axb4 {[%clk 0:45:12]} 20. Nxe7 {[%clk 0:03:04]}  Qxe7 {[%clk 0:40:00]} 21. axb4 {[%clk 0:03:28]}  Nc7 {[%clk 0:33:19]}
22. Nxc7 {[%clk 0:03:11]}  Qxc7 {[%clk 0:33:43]} 23. b5 {[%clk 0:01:56]}  Nd8 {[%clk 0:33:58]} 24. Bd2 {[%clk 0:01:35]}  Ne6 {[%clk 0:34:00]}
25. Bb4 {[%clk 0:01:39]}  Nc5 {[%clk 0:33:45]} 26. Qf3 {[%clk 0:01:32]}  Rab8 {[%clk 0:27:19]} 27. Ra1 {[%clk 0:01:06]}  b6 {[%clk 0:22:57]}
28. Bxc5 {[%clk 0:01:00]}  Qxc5 {[%clk 0:22:55]} 29. Ra7 {[%clk 0:01:02]}  Rfc8 {[%clk 0:15:25]} 30. Rea1 {[%clk 0:00:50]}  Rc7 {[%clk 0:15:02]}
31. Ra8 {[%clk 0:00:44]}  Rbc8 {[%clk 0:10:09]} 32. Rxc8+ {[%clk 0:00:47]}  Rxc8 {[%clk 0:10:33]} 33. Ra7 {[%clk 0:00:36]}  h6 {[%clk 0:09:36]}
34. Qb7 {[%clk 0:00:32]}  Rg8 {[%clk 0:10:04]} 35. Qe7 {[%clk 0:00:35]}  Qxe7 {[%clk 0:04:51]} 36. Rxe7 {[%clk 0:01:00]}  Ra8 {[%clk 0:03:06]}
37. Rb7 {[%clk 0:00:34]}  Ra3 {[%clk 0:03:30]} 38. Rxb6 {[%clk 0:00:53]}  Rxd3 {[%clk 0:03:54]} 39. Rb8+ {[%clk 0:00:36]}  Kh7 {[%clk 0:04:15]}
40. b6 {[%clk 0:00:33]}  Rb3 {[%clk 0:03:28]} 41. c5 {[%clk 0:00:35]}  d3 {[%clk 0:03:41]} 42. Rd8 {[%clk 0:22:09]}  e4 {[%clk 0:31:06]}
43. c6 {[%clk 0:09:18]}  d2 {[%clk 0:25:59]} 44. Rxd2 {[%clk 0:08:47]}  Rxb6 {[%clk 0:26:14]} 45. Rc2 {[%clk 0:08:56]}  Rb8 {[%clk 0:26:36]}
46. c7 {[%clk 0:04:10]}  Rc8 {[%clk 0:26:55]} 47. Kf1 {[%clk 0:02:16]}  Kg6 {[%clk 0:24:01]} 48. Ke2 {[%clk 0:01:00]}  Kf5 {[%clk 0:18:37]}
49. Ke3 {[%clk 0:01:12]}  Ke5 {[%clk 0:16:40]} 50. h4 {[%clk 0:01:11]}  f5 {[%clk 0:13:43]} 51. h5 {[%clk 0:01:27]}  Kf6 {[%clk 0:11:09]}
52. Kf4 {[%clk 0:01:18]}  Ke6 {[%clk 0:11:23]} 53. Rc1 {[%clk 0:00:53]}  Kd7 {[%clk 0:10:39]} 54. Kxf5 {[%clk 0:01:02]}  Rf8+ {[%clk 0:11:04]}
55. Kxe4 {[%clk 0:00:45]}  Kc8 {[%clk 0:11:31]} 56. f4 {[%clk 0:01:02]}  Rf7 {[%clk 0:11:03]} 57. g4 {[%clk 0:01:00]}  Rf6 {[%clk 0:11:04]}
58. Rc5 {[%clk 0:00:38]}  Rf7 {[%clk 0:11:05]} 59. g5 {[%clk 0:00:33]}  hxg5 {[%clk 0:11:12]} 60. fxg5 {[%clk 0:00:57]}  Rf1 {[%clk 0:10:55]}
61. Rc6 {[%clk 0:00:46]}  Rf7 {[%clk 0:10:51]} 62. Ke5 {[%clk 0:00:45]}  Rf1 {[%clk 0:10:26]} 63. Ke6 {[%clk 0:00:53]}  Rh1 {[%clk 0:07:29]}
64. Kf7 {[%clk 0:01:05]}  Rxh5 {[%clk 0:07:53]} 65. g6 {[%clk 0:01:02]}  Kd7 {[%clk 0:06:08]} 66. c8=Q# {[%clk 0:00:50]} 1-0

[Event "Irish Championship 2026"]
[Site "Talbot Hotel Stillorgan, Co.Dublin, IE"]
[Date "2026.08.01"]
[Round "1"]
[White "O'Connell, Gerard"]
[Black "Collins, Adam"]
[Result "0-1"]
[Board "62"]
[TimeControl "40/5400+30:1800+30"]
[WhiteFideId "2500493"]
[BlackFideId "2512300"]
[WhiteElo "1996"]
[BlackElo "2340"]
[BlackTitle "FM"]
[WhiteClock "0:17:33"]
[BlackClock "0:57:57"]
[Variant "Standard"]
[EndDate "2026.08.01"]
[EndTime "18:55:10"]

1. d4 {[%clk 1:30:57]}  d5 {[%clk 1:30:00]} 2. Nf3 {[%clk 1:31:07]}  Nf6 {[%clk 1:30:24]} 3. g3 {[%clk 1:30:55]}  Bf5 {[%clk 1:30:47]}
4. Bg2 {[%clk 1:31:16]}  c6 {[%clk 1:31:11]} 5. O-O {[%clk 1:31:26]}  Nbd7 {[%clk 1:31:37]} 6. c4 {[%clk 1:31:08]}  e6 {[%clk 1:32:02]}
7. Nc3 {[%clk 1:29:42]}  dxc4 {[%clk 1:32:27]} 8. Nd2 {[%clk 1:22:20]}  Nb6 {[%clk 1:32:52]} 9. e3 {[%clk 1:20:45]}  Bb4 {[%clk 1:26:26]}
10. h3 {[%clk 1:20:19]}  Bd3 {[%clk 1:20:27]} 11. Re1 {[%clk 1:20:29]}  Nfd5 {[%clk 1:16:41]} 12. Nxd5 {[%clk 1:05:02]}  cxd5 {[%clk 1:15:40]}
13. a3 {[%clk 1:05:16]}  Be7 {[%clk 1:14:41]} 14. Nf3 {[%clk 1:03:50]}  Nd7 {[%clk 1:13:06]} 15. Bd2 {[%clk 1:02:21]}  O-O {[%clk 1:12:46]}
16. Bc3 {[%clk 0:58:03]}  b5 {[%clk 1:06:29]} 17. b4 {[%clk 0:56:17]}  Be4 {[%clk 1:05:29]} 18. Ne5 {[%clk 0:55:40]}  Bxg2 {[%clk 1:05:30]}
19. Kxg2 {[%clk 0:55:46]}  Nb6 {[%clk 1:05:32]} 20. h4 {[%clk 0:48:55]}  Qc7 {[%clk 1:01:28]} 21. h5 {[%clk 0:42:25]}  Na4 {[%clk 1:00:50]}
22. Qc2 {[%clk 0:41:59]}  f6 {[%clk 1:00:16]} 23. Nf3 {[%clk 0:40:10]}  Qc6 {[%clk 0:59:32]} 24. Kg1 {[%clk 0:26:32]}  Bd6 {[%clk 0:59:16]}
25. h6 {[%clk 0:26:24]}  g6 {[%clk 0:59:09]} 26. Rac1 {[%clk 0:16:59]}  a5 {[%clk 0:58:46]} 27. Ra1 {[%clk 0:16:40]}  Qc7 {[%clk 0:57:48]}
28. Kg2 {[%clk 0:16:47]}  Nxc3 {[%clk 0:57:35]} 29. Qxc3 {[%clk 0:17:08]}  axb4 {[%clk 0:57:41]} 30. axb4 {[%clk 0:17:33]}  Qe7 {[%clk 0:57:57]} 0-1

[Event "Irish Championship 2026"]
[Site "Talbot Hotel Stillorgan, Co.Dublin, IE"]
[Date "2026.08.01"]
[Round "1"]
[White "Braine, Harry"]
[Black "Brozynski, Patryk"]
[Result "1-0"]
[Board "66"]
[TimeControl "40/5400+30:1800+30"]
[WhiteFideId "2518570"]
[BlackFideId "2512700"]
[WhiteElo "1948"]
[BlackElo "2224"]
[BlackTitle "CM"]
[WhiteClock "0:45:38"]
[BlackClock "0:13:13"]
[Variant "Standard"]
[EndDate "2026.08.01"]
[EndTime "18:58:55"]

1. e4 {[%clk 1:30:54]}  c5 {[%clk 1:30:26]} 2. Nf3 {[%clk 1:31:11]}  e6 {[%clk 1:30:31]} 3. d4 {[%clk 1:31:15]}  cxd4 {[%clk 1:28:54]}
4. Nxd4 {[%clk 1:31:34]}  Nc6 {[%clk 1:29:06]} 5. Nc3 {[%clk 1:31:53]}  Qc7 {[%clk 1:28:43]} 6. Be3 {[%clk 1:32:09]}  a6 {[%clk 1:28:56]}
7. Qd2 {[%clk 1:32:23]}  Nf6 {[%clk 1:26:39]} 8. f4 {[%clk 1:31:57]}  Bb4 {[%clk 1:20:53]} 9. Bd3 {[%clk 1:31:51]}  Na5 {[%clk 0:45:55]}
10. e5 {[%clk 1:30:33]}  Nd5 {[%clk 0:42:21]} 11. O-O {[%clk 1:30:03]}  Nc4 {[%clk 0:30:23]} 12. Nxd5 {[%clk 1:22:46]}  exd5 {[%clk 0:30:41]}
13. Qxb4 {[%clk 1:22:01]}  Nxe3 {[%clk 0:30:51]} 14. Rf3 {[%clk 1:07:25]}  Nc4 {[%clk 0:26:18]} 15. Nf5 {[%clk 1:02:04]}  Qb6+ {[%clk 0:23:59]}
16. Qxb6 {[%clk 1:02:22]}  Nxb6 {[%clk 0:24:28]} 17. Nxg7+ {[%clk 1:00:00]}  Kf8 {[%clk 0:24:58]} 18. Nf5 {[%clk 0:59:49]}  Na4 {[%clk 0:24:43]}
19. b3 {[%clk 0:55:05]}  Nc5 {[%clk 0:23:39]} 20. Nd6 {[%clk 0:52:10]}  b6 {[%clk 0:19:35]} 21. Bf5 {[%clk 0:49:51]}  Bb7 {[%clk 0:14:17]}
22. b4 {[%clk 0:46:04]}  d4 {[%clk 0:13:13]} 23. Rf2 {[%clk 0:45:38]} 1-0

[Event "Irish Championship 2026"]
[Site "Talbot Hotel Stillorgan, Co.Dublin, IE"]
[Date "2026.08.01"]
[Round "1"]
[White "Daly, Colm"]
[Black "Nichenametla V, Advaith"]
[Result "1/2-1/2"]
[Board "67"]
[TimeControl "40/5400+30:1800+30"]
[WhiteFideId "2500434"]
[BlackFideId "2516896"]
[WhiteElo "2182"]
[BlackElo "1943"]
[WhiteTitle "FM"]
[WhiteClock "0:05:45"]
[BlackClock "0:57:38"]
[Variant "Standard"]
[EndDate "2026.08.01"]
[EndTime "18:55:04"]

1. Nf3 {[%clk 1:26:20]}  d5 {[%clk 1:30:31]} 2. b3 {[%clk 1:26:36]}  Nf6 {[%clk 1:30:55]} 3. Bb2 {[%clk 1:27:01]}  e6 {[%clk 1:31:21]}
4. c4 {[%clk 1:27:24]}  Be7 {[%clk 1:31:48]} 5. g3 {[%clk 1:27:48]}  Nbd7 {[%clk 1:32:12]} 6. Bg2 {[%clk 1:28:11]}  O-O {[%clk 1:32:38]}
7. O-O {[%clk 1:28:35]}  b6 {[%clk 1:33:06]} 8. cxd5 {[%clk 1:28:48]}  exd5 {[%clk 1:33:30]} 9. Nc3 {[%clk 1:29:13]}  Bb7 {[%clk 1:33:57]}
10. Rc1 {[%clk 1:29:36]}  c5 {[%clk 1:34:20]} 11. d4 {[%clk 1:30:05]}  Rc8 {[%clk 1:34:36]} 12. dxc5 {[%clk 1:30:25]}  bxc5 {[%clk 1:34:13]}
13. Nh4 {[%clk 1:30:51]}  Nb6 {[%clk 1:32:52]} 14. Nf5 {[%clk 1:30:55]}  Re8 {[%clk 1:27:24]} 15. Nxe7+ {[%clk 1:28:53]}  Qxe7 {[%clk 1:24:32]}
16. Ba3 {[%clk 1:27:52]}  d4 {[%clk 1:18:46]} 17. Bxb7 {[%clk 1:23:13]}  Qxb7 {[%clk 1:18:23]} 18. Nb1 {[%clk 1:20:13]}  Nbd7 {[%clk 1:16:53]}
19. Re1 {[%clk 1:15:09]}  Ne4 {[%clk 1:15:16]} 20. f3 {[%clk 1:10:08]}  Nef6 {[%clk 1:13:30]} 21. Rc2 {[%clk 0:57:33]}  Nd5 {[%clk 1:10:24]}
22. Bc1 {[%clk 0:50:20]}  N7f6 {[%clk 1:05:45]} 23. Bd2 {[%clk 0:41:11]}  Ne3 {[%clk 1:00:24]} 24. Bxe3 {[%clk 0:39:31]}  Rxe3 {[%clk 1:00:47]}
25. Qc1 {[%clk 0:32:11]}  Nd7 {[%clk 0:55:40]} 26. Nd2 {[%clk 0:28:21]}  Rce8 {[%clk 0:54:13]} 27. Nc4 {[%clk 0:27:18]}  R3e6 {[%clk 0:54:40]}
28. Kf2 {[%clk 0:14:54]}  Qd5 {[%clk 0:49:59]} 29. Rd2 {[%clk 0:07:58]}  Ne5 {[%clk 0:44:13]} 30. e4 {[%clk 0:07:00]}  Qd8 {[%clk 0:44:33]}
31. Nxe5 {[%clk 0:06:17]}  Rxe5 {[%clk 0:44:59]} 32. Rdd1 {[%clk 0:05:21]}  Qc8 {[%clk 0:41:25]} 33. g4 {[%clk 0:04:28]}  Qa6 {[%clk 0:41:13]}
34. Qd2 {[%clk 0:04:17]}  Qf6 {[%clk 0:41:09]} 35. Kg3 {[%clk 0:04:02]}  h5 {[%clk 0:41:20]} 36. h3 {[%clk 0:04:09]}  Qd6 {[%clk 0:37:46]}
37. Kg2 {[%clk 0:04:26]}  h4 {[%clk 0:37:56]} 38. Qf2 {[%clk 0:04:37]}  g5 {[%clk 0:37:54]} 39. Rc1 {[%clk 0:04:57]}  R8e6 {[%clk 0:36:20]}
40. Red1 {[%clk 0:05:03]}  Rf6 {[%clk 0:36:34]} 41. b4 {[%clk 0:04:16]}  Qe6 {[%clk 0:35:08]} 42. Rxc5 {[%clk 0:02:05]}  Rxe4 {[%clk 0:35:17]}
43. Rxg5+ {[%clk 0:02:04]}  Kf8 {[%clk 0:35:32]} 44. Rd2 {[%clk 0:26:19]}  Re3 {[%clk 1:03:58]} 45. Qxh4 {[%clk 0:12:57]}  Rfxf3 {[%clk 1:04:11]}
46. Rf5 {[%clk 0:03:43]}  Re2+ {[%clk 0:57:02]} 47. Rxe2 {[%clk 0:04:11]}  Qxe2+ {[%clk 0:57:24]} 48. Kg1 {[%clk 0:04:18]}  Qf1+ {[%clk 0:56:58]}
49. Kh2 {[%clk 0:04:47]}  Qe2+ {[%clk 0:57:21]} 50. Kg1 {[%clk 0:05:16]}  Qf1+ {[%clk 0:57:38]} 51. Kh2 {[%clk 0:05:45]} 1/2-1/2

[Event "Irish Championship 2026"]
[Site "Talbot Hotel Stillorgan, Co.Dublin, IE"]
[Date "2026.08.01"]
[Round "1"]
[White "Healy, John"]
[Black "Arun, Nitish"]
[Result "0-1"]
[Board "68"]
[TimeControl "40/5400+30:1800+30"]
[WhiteFideId "2500965"]
[BlackFideId "2524201"]
[WhiteElo "1928"]
[BlackElo "2175"]
[BlackTitle "CM"]
[WhiteClock "0:33:44"]
[BlackClock "0:02:27"]
[Variant "Standard"]
[EndDate "2026.08.01"]
[EndTime "18:58:55"]

1. b4 {[%clk 1:28:58]}  d5 {[%clk 1:28:48]} 2. Bb2 {[%clk 1:29:20]}  Nf6 {[%clk 1:27:16]} 3. Nf3 {[%clk 1:29:13]}  Bf5 {[%clk 1:24:48]}
4. e3 {[%clk 1:28:26]}  e6 {[%clk 1:22:29]} 5. b5 {[%clk 1:27:34]}  Nbd7 {[%clk 1:20:28]} 6. c4 {[%clk 1:26:22]}  Bd6 {[%clk 1:11:21]}
7. Nc3 {[%clk 1:21:34]}  O-O {[%clk 1:09:16]} 8. Be2 {[%clk 1:17:43]}  dxc4 {[%clk 1:03:14]} 9. Bxc4 {[%clk 1:17:56]}  Nc5 {[%clk 1:03:04]}
10. d4 {[%clk 1:17:38]}  Nce4 {[%clk 1:03:16]} 11. O-O {[%clk 1:14:42]}  Nxc3 {[%clk 1:00:12]} 12. Bxc3 {[%clk 1:12:59]}  Ne4 {[%clk 1:00:37]}
13. Bb2 {[%clk 1:12:35]}  Qf6 {[%clk 0:49:07]} 14. Ne5 {[%clk 1:10:52]}  Qh6 {[%clk 0:45:57]} 15. f4 {[%clk 1:07:56]}  Bxe5 {[%clk 0:43:34]}
16. dxe5 {[%clk 1:08:17]}  Rfd8 {[%clk 0:35:28]} 17. Bd4 {[%clk 1:08:40]}  c5 {[%clk 0:33:05]} 18. bxc6 {[%clk 1:09:05]}  bxc6 {[%clk 0:33:31]}
19. Qc1 {[%clk 1:03:21]}  Qg6 {[%clk 0:30:43]} 20. Rd1 {[%clk 0:58:39]}  Bg4 {[%clk 0:25:13]} 21. Re1 {[%clk 0:49:29]}  c5 {[%clk 0:23:36]}
22. Bc3 {[%clk 0:49:52]}  h5 {[%clk 0:18:32]} 23. Ba5 {[%clk 0:48:03]}  Bf3 {[%clk 0:14:29]} 24. Bf1 {[%clk 0:47:52]}  Rd5 {[%clk 0:14:00]}
25. Qb2 {[%clk 0:47:26]}  c4 {[%clk 0:12:26]} 26. Kh1 {[%clk 0:44:03]}  Rxa5 {[%clk 0:09:32]} 27. gxf3 {[%clk 0:44:25]}  c3 {[%clk 0:09:36]}
28. Qg2 {[%clk 0:39:23]}  Qxg2+ {[%clk 0:09:50]} 29. Kxg2 {[%clk 0:39:47]}  Nd2 {[%clk 0:10:10]} 30. Rec1 {[%clk 0:38:35]}  Ra3 {[%clk 0:08:55]}
31. Rc2 {[%clk 0:38:55]}  Rb8 {[%clk 0:08:02]} 32. Bd3 {[%clk 0:34:32]}  Rb2 {[%clk 0:04:19]} 33. Rac1 {[%clk 0:33:20]}  Raxa2 {[%clk 0:02:10]}
34. Rxb2 {[%clk 0:33:19]}  Rxb2 {[%clk 0:02:29]} 35. Rc2 {[%clk 0:33:44]}  Nc4 {[%clk 0:02:27]} 0-1

[Event "Irish Championship 2026"]
[Site "Talbot Hotel Stillorgan, Co.Dublin, IE"]
[Date "2026.08.01"]
[Round "1"]
[White "Melaugh, Shane"]
[Black "OBrien, James Joseph"]
[Result "1-0"]
[Board "71"]
[TimeControl "40/5400+30:1800+30"]
[WhiteFideId "2509580"]
[BlackFideId "2518813"]
[WhiteElo "2157"]
[BlackElo "1914"]
[WhiteTitle "FM"]
[WhiteClock "0:25:47"]
[BlackClock "0:01:10"]
[Variant "Standard"]
[EndDate "2026.08.01"]
[EndTime "18:54:59"]

1. c4 {[%clk 1:30:57]}  c5 {[%clk 1:30:54]} 2. Nc3 {[%clk 1:31:20]}  Nc6 {[%clk 1:31:20]} 3. e4 {[%clk 1:31:42]}  g6 {[%clk 1:30:37]}
4. Nge2 {[%clk 1:31:55]}  Bg7 {[%clk 1:30:54]} 5. g3 {[%clk 1:31:39]}  d6 {[%clk 1:30:56]} 6. Bg2 {[%clk 1:32:04]}  e6 {[%clk 1:31:19]}
7. d3 {[%clk 1:31:35]}  Nge7 {[%clk 1:31:41]} 8. Be3 {[%clk 1:30:10]}  Nd4 {[%clk 1:31:48]} 9. h4 {[%clk 1:26:07]}  Nec6 {[%clk 1:23:41]}
10. h5 {[%clk 1:25:38]}  Bd7 {[%clk 1:05:48]} 11. Nf4 {[%clk 1:15:00]}  a6 {[%clk 0:57:02]} 12. O-O {[%clk 1:10:40]}  b5 {[%clk 0:55:34]}
13. h6 {[%clk 1:04:02]}  Bf6 {[%clk 0:52:29]} 14. Nh3 {[%clk 1:02:13]}  b4 {[%clk 0:45:58]} 15. Ne2 {[%clk 1:01:33]}  e5 {[%clk 0:44:16]}
16. Nxd4 {[%clk 1:01:10]}  Nxd4 {[%clk 0:44:27]} 17. f4 {[%clk 1:01:04]}  Bc6 {[%clk 0:26:10]} 18. Qd2 {[%clk 0:51:31]}  Qd7 {[%clk 0:22:52]}
19. Bxd4 {[%clk 0:45:38]}  exd4 {[%clk 0:22:48]} 20. Nf2 {[%clk 0:39:27]}  Be7 {[%clk 0:19:12]} 21. Rae1 {[%clk 0:33:32]}  O-O-O {[%clk 0:15:12]}
22. Bh3 {[%clk 0:33:33]}  f5 {[%clk 0:15:29]} 23. a3 {[%clk 0:33:27]}  a5 {[%clk 0:15:14]} 24. axb4 {[%clk 0:31:32]}  axb4 {[%clk 0:15:38]}
25. Qe2 {[%clk 0:30:51]}  Rde8 {[%clk 0:08:22]} 26. exf5 {[%clk 0:29:44]}  gxf5 {[%clk 0:08:39]} 27. Qh5 {[%clk 0:30:08]}  Rhf8 {[%clk 0:07:35]}
28. Ne4 {[%clk 0:29:18]}  Kb7 {[%clk 0:06:16]} 29. Ng5 {[%clk 0:27:58]}  Bxg5 {[%clk 0:05:47]} 30. fxg5 {[%clk 0:26:50]}  Rxe1 {[%clk 0:05:04]}
31. Rxe1 {[%clk 0:27:18]}  Qf7 {[%clk 0:04:01]} 32. Qxf7+ {[%clk 0:27:28]}  Rxf7 {[%clk 0:04:26]} 33. Re6 {[%clk 0:27:10]}  d5 {[%clk 0:01:16]}
34. Bg2 {[%clk 0:25:14]}  Rd7 {[%clk 0:00:46]} 35. g6 {[%clk 0:25:26]}  hxg6 {[%clk 0:01:10]} 36. Rxg6 {[%clk 0:25:47]} 1-0

[Event "Irish Championship 2026"]
[Site "Talbot Hotel Stillorgan, Co.Dublin, IE"]
[Date "2026.08.01"]
[Round "1"]
[White "Woods, Yannick"]
[Black "Fitzgerald, Niall"]
[Result "1-0"]
[Board "73"]
[TimeControl "40/5400+30:1800+30"]
[WhiteFideId "2518384"]
[BlackFideId "2511185"]
[WhiteElo "2118"]
[BlackElo "1894"]
[WhiteClock "0:09:22"]
[BlackClock "0:00:41"]
[Variant "Standard"]
[EndDate "2026.08.01"]
[EndTime "18:55:11"]

1. d4 {[%clk 1:30:57]}  d5 {[%clk 1:30:35]} 2. c4 {[%clk 1:31:21]}  e6 {[%clk 1:31:01]} 3. Nc3 {[%clk 1:30:54]}  Nf6 {[%clk 1:31:24]}
4. cxd5 {[%clk 1:31:03]}  exd5 {[%clk 1:31:50]} 5. Bg5 {[%clk 1:31:28]}  Be7 {[%clk 1:32:06]} 6. e3 {[%clk 1:31:50]}  c6 {[%clk 1:32:31]}
7. Bd3 {[%clk 1:30:52]}  Nbd7 {[%clk 1:32:48]} 8. Qc2 {[%clk 1:23:56]}  h6 {[%clk 1:30:29]} 9. Bh4 {[%clk 1:23:55]}  Nh5 {[%clk 1:30:15]}
10. Bxe7 {[%clk 1:24:19]}  Qxe7 {[%clk 1:30:40]} 11. O-O-O {[%clk 1:20:04]}  Nb6 {[%clk 1:11:27]} 12. Nge2 {[%clk 1:08:40]}  Be6 {[%clk 0:57:52]}
13. f3 {[%clk 1:06:02]}  Qg5 {[%clk 0:55:47]} 14. f4 {[%clk 0:47:39]}  Qxg2 {[%clk 0:51:58]} 15. f5 {[%clk 0:32:00]}  Bd7 {[%clk 0:50:32]}
16. Rhg1 {[%clk 0:28:44]}  Qf3 {[%clk 0:24:00]} 17. Ng3 {[%clk 0:23:56]}  O-O-O {[%clk 0:17:27]} 18. Kb1 {[%clk 0:17:20]}  Nxg3 {[%clk 0:06:38]}
19. Rxg3 {[%clk 0:17:49]}  Qh5 {[%clk 0:07:02]} 20. Rdg1 {[%clk 0:12:28]}  Rhe8 {[%clk 0:04:07]} 21. Qf2 {[%clk 0:12:31]}  Nc4 {[%clk 0:03:27]}
22. Bxc4 {[%clk 0:11:51]}  dxc4 {[%clk 0:01:45]} 23. e4 {[%clk 0:12:21]}  Qh4 {[%clk 0:01:03]} 24. Rf3 {[%clk 0:09:46]}  Qxf2 {[%clk 0:00:57]}
25. Rxf2 {[%clk 0:10:14]}  b5 {[%clk 0:00:57]} 26. Rf4 {[%clk 0:03:32]}  Rg8 {[%clk 0:01:05]} 27. Kc1 {[%clk 0:03:03]}  Rdf8 {[%clk 0:00:41]}
28. e5 {[%clk 0:03:05]}  Re8 {[%clk 0:00:41]} 29. Ne4 {[%clk 0:03:22]}  Kc7 {[%clk 0:00:46]} 30. Kd2 {[%clk 0:02:49]}  a5 {[%clk 0:00:35]}
31. a3 {[%clk 0:02:57]}  Rd8 {[%clk 0:00:42]} 32. Ng3 {[%clk 0:01:34]}  Kb6 {[%clk 0:00:33]} 33. Nh5 {[%clk 0:01:49]}  g5 {[%clk 0:00:46]}
34. Rf2 {[%clk 0:01:14]}  Bc8 {[%clk 0:00:39]} 35. Ke3 {[%clk 0:01:43]}  c5 {[%clk 0:00:53]} 36. Rd1 {[%clk 0:00:45]}  cxd4+ {[%clk 0:01:18]}
37. Rxd4 {[%clk 0:01:13]}  Rxd4 {[%clk 0:01:40]} 38. Kxd4 {[%clk 0:01:42]}  Rd8+ {[%clk 0:01:56]} 39. Kc3 {[%clk 0:01:53]}  Rd3+ {[%clk 0:01:00]}
40. Kc2 {[%clk 0:02:18]}  Re3 {[%clk 0:01:01]} 41. e6 {[%clk 0:01:14]}  f6 {[%clk 0:00:36]} 42. Nxf6 {[%clk 0:01:21]}  Kc5 {[%clk 0:00:41]}
43. Ng4 {[%clk 0:22:41]}  Re4 {[%clk 0:27:48]} 44. Nxh6 {[%clk 0:22:19]}  b4 {[%clk 0:27:15]} 45. Nf7 {[%clk 0:19:57]}  Rf4 {[%clk 0:10:50]}
46. Rd2 {[%clk 0:10:50]}  Rxf5 {[%clk 0:06:44]} 47. e7 {[%clk 0:10:38]}  Rf1 {[%clk 0:06:34]} 48. Rd5+ {[%clk 0:08:17]}  Kxd5 {[%clk 0:06:23]}
49. e8=Q {[%clk 0:08:40]}  Rf2+ {[%clk 0:00:43]} 50. Kc1 {[%clk 0:08:54]}  Rf1+ {[%clk 0:00:45]} 51. Kd2 {[%clk 0:09:14]}  Be6 {[%clk 0:00:41]}
52. Qb5+ {[%clk 0:09:22]} 1-0